[Event "*** Titled Tuesday 3|2 Blitz"]
[Site "Chess.com"]
[Date "2016.06.07"]
[Round "2"]
[White "jeaston1"]
[Black "Wolverine_master"]
[Result "1-0"]
[WhiteElo "2022"]
[BlackElo "2091"]
[TimeControl "180+2"]
[EndTime "11:22:18 PDT"]
[Termination "jeaston1 won by resignation"]

1. d4 {[%clk 0:03:01.9]} 1... Nf6 {[%clk 0:02:56.7]} 2. c4 {[%clk 0:03:02.2]}
2... c5 {[%clk 0:02:57.4]} 3. d5 {[%clk 0:03:03]} 3... b5 {[%clk 0:02:58.5]} 4.
cxb5 {[%clk 0:03:03.7]} 4... a6 {[%clk 0:03:00]} 5. bxa6 {[%clk 0:03:05.6]} 5...
Bxa6 {[%clk 0:03:01.5]} 6. Nc3 {[%clk 0:03:07]} 6... d6 {[%clk 0:03:02.7]} 7. e4
{[%clk 0:03:07.9]} 7... Bxf1 {[%clk 0:03:02.4]} 8. Kxf1 {[%clk 0:03:09.8]} 8...
g6 {[%clk 0:03:03]} 9. Nf3 {[%clk 0:03:11.1]} 9... Nbd7 {[%clk 0:03:04.4]} 10.
g3 {[%clk 0:03:12.1]} 10... Bg7 {[%clk 0:03:05.8]} 11. Kg2 {[%clk 0:03:13.4]}
11... O-O {[%clk 0:03:07.2]} 12. Qe2 {[%clk 0:03:14.5]} 12... Nb6 {[%clk
0:02:54.9]} 13. a4 {[%clk 0:03:13.5]} 13... Nbd7 {[%clk 0:02:20.1]} 14. Bd2
{[%clk 0:03:10.2]} 14... Qb6 {[%clk 0:02:20.4]} 15. Nb5 {[%clk 0:03:08.4]} 15...
Rfb8 {[%clk 0:02:17.4]} 16. Bc3 {[%clk 0:03:07.8]} 16... Ne8 {[%clk 0:02:17.6]}
17. Bxg7 {[%clk 0:03:07.3]} 17... Kxg7 {[%clk 0:02:11.6]} 18. Nd2 {[%clk
0:03:07.6]} 18... Nc7 {[%clk 0:02:08.5]} 19. Nc4 {[%clk 0:03:05.8]} 19... Qb7
{[%clk 0:02:05.4]} 20. Nxc7 {[%clk 0:02:56.2]} 20... Qxc7 {[%clk 0:02:05.3]} 21.
a5 {[%clk 0:02:33.5]} 21... Ne5 {[%clk 0:02:01.1]} 22. Nxe5 {[%clk 0:02:33.5]}
22... dxe5 {[%clk 0:02:01.8]} 23. Qd2 {[%clk 0:02:34.7]} 23... Rb5 {[%clk
0:02:00.5]} 24. a6 {[%clk 0:02:33.5]} 24... Qb6 {[%clk 0:02:01.2]} 25. Qc3
{[%clk 0:02:33.2]} 25... f6 {[%clk 0:02:00.4]} 26. Qa3 {[%clk 0:02:23.4]} 26...
Rxb2 {[%clk 0:01:56.9]} 27. a7 {[%clk 0:02:16.5]} 27... c4 {[%clk 0:01:57.4]}
28. Rhf1 {[%clk 0:02:15.8]} 28... Rb3 {[%clk 0:01:41.7]} 29. Qxe7+ {[%clk
0:02:15.4]} 29... Kh6 {[%clk 0:01:31.7]} 30. d6 {[%clk 0:01:56.6]} 30... Rd3
{[%clk 0:01:26.7]} 31. Qxf6 {[%clk 0:01:53.4]} 31... Qxd6 {[%clk 0:01:27]} 32.
Qxd6 {[%clk 0:01:37.1]} 32... Rxd6 {[%clk 0:01:26.9]} 33. Rfc1 {[%clk
0:01:38.1]} 33... Rd7 {[%clk 0:01:05]} 34. Rxc4 {[%clk 0:01:36.7]} 34... Raxa7
{[%clk 0:01:06]} 35. Rxa7 {[%clk 0:01:28.9]} 35... Rxa7 {[%clk 0:01:07.9]} 36.
Rc5 {[%clk 0:01:29.4]} 36... Re7 {[%clk 0:01:08.4]} 37. Rd5 {[%clk 0:01:28.7]}
37... Kg7 {[%clk 0:01:03.1]} 38. Kf3 {[%clk 0:01:28.4]} 38... Kf6 {[%clk
0:00:58]} 39. Rd6+ {[%clk 0:01:27.5]} 39... Kf7 {[%clk 0:00:58.2]} 40. Kg4
{[%clk 0:01:21]} 40... h6 {[%clk 0:00:57.6]} 41. h4 {[%clk 0:01:18.7]} 41... Kg7
{[%clk 0:00:57.9]} 42. h5 {[%clk 0:01:17.5]} 42... gxh5+ {[%clk 0:00:56.2]} 43.
Kxh5 {[%clk 0:01:17.1]} 43... Rf7 {[%clk 0:00:57.6]} 44. Rg6+ {[%clk 0:01:02.1]}
44... Kf8 {[%clk 0:00:52.8]} 45. Rxh6 {[%clk 0:01:02.2]} 45... Rxf2 {[%clk
0:00:53.5]} 46. Re6 {[%clk 0:01:02.9]} 46... Kf7 {[%clk 0:00:42]} 47. Rxe5
{[%clk 0:01:03.6]} 47... Kf6 {[%clk 0:00:43.2]} 48. Rf5+ {[%clk 0:00:59.3]}
48... Rxf5+ {[%clk 0:00:43.6]} 49. exf5 {[%clk 0:01:01.2]} 49... Kxf5 {[%clk
0:00:45.3]} 50. g4+ {[%clk 0:01:02.8]} 50... Kf6 {[%clk 0:00:46.9]} 51. Kh6
{[%clk 0:01:03.8]} 51... Kf7 {[%clk 0:00:48.6]} 52. g5 {[%clk 0:00:59.7]} 52...
Kg8 {[%clk 0:00:49.6]} 53. Kg6 {[%clk 0:01:00.9]} 53... Kh8 {[%clk 0:00:50.9]}
54. Kf7 {[%clk 0:01:01.9]} 54... Kh7 {[%clk 0:00:52.2]} 55. g6+ {[%clk
0:01:03.6]} 55... Kh8 {[%clk 0:00:53.7]} 56. g7+ {[%clk 0:01:05.1]} 56... Kh7
{[%clk 0:00:55.3]} 57. g8=Q+ {[%clk 0:01:07]} 1-0

[Event "*** Titled Tuesday 3|2 Blitz"]
[Site "Chess.com"]
[Date "2016.06.07"]
[Round "2"]
[White "SCIM"]
[Black "petrpalachev"]
[Result "1-0"]
[WhiteElo "2257"]
[BlackElo "2396"]
[TimeControl "180+2"]
[EndTime "11:22:45 PDT"]
[Termination "SCIM won on time"]

1. d4 {[%clk 0:03:01.9]} 1... e6 {[%clk 0:03:01.9]} 2. c4 {[%clk 0:03:02.4]}
2... Nf6 {[%clk 0:03:03.4]} 3. g3 {[%clk 0:03:03]} 3... d5 {[%clk 0:03:03.5]} 4.
Nf3 {[%clk 0:03:02.5]} 4... dxc4 {[%clk 0:03:04.5]} 5. Bg2 {[%clk 0:03:02.5]}
5... a6 {[%clk 0:03:05.3]} 6. O-O {[%clk 0:02:53.7]} 6... Nc6 {[%clk 0:03:04.2]}
7. e3 {[%clk 0:02:42.7]} 7... Rb8 {[%clk 0:03:04.7]} 8. Nfd2 {[%clk 0:02:41]}
8... e5 {[%clk 0:02:59.6]} 9. Nxc4 {[%clk 0:02:34.2]} 9... exd4 {[%clk
0:02:56.5]} 10. exd4 {[%clk 0:02:34.3]} 10... Nxd4 {[%clk 0:02:55.9]} 11. Nc3
{[%clk 0:02:23.1]} 11... Be7 {[%clk 0:02:55.7]} 12. Be3 {[%clk 0:02:15.8]} 12...
Ne6 {[%clk 0:02:54.6]} 13. Qc2 {[%clk 0:02:11.9]} 13... O-O {[%clk 0:02:54.5]}
14. Rad1 {[%clk 0:02:12.4]} 14... Qe8 {[%clk 0:02:53.7]} 15. Ne5 {[%clk
0:02:08.1]} 15... Bd6 {[%clk 0:02:38.5]} 16. Nc4 {[%clk 0:02:06.5]} 16... Bb4
{[%clk 0:02:35.8]} 17. a3 {[%clk 0:01:59.4]} 17... Bxc3 {[%clk 0:02:36]} 18.
Qxc3 {[%clk 0:02:00]} 18... Bd7 {[%clk 0:02:34]} 19. Rfe1 {[%clk 0:01:54.3]}
19... Bc6 {[%clk 0:02:31]} 20. Bh3 {[%clk 0:01:49.8]} 20... Nd5 {[%clk 0:02:04]}
21. Qe5 {[%clk 0:01:39.9]} 21... Nxe3 {[%clk 0:02:00.5]} 22. Rxe3 {[%clk
0:01:38.8]} 22... Rd8 {[%clk 0:02:00.4]} 23. Rde1 {[%clk 0:01:36.6]} 23... Rd5
{[%clk 0:01:54.2]} 24. Qc3 {[%clk 0:01:27.9]} 24... Rh5 {[%clk 0:01:44.8]} 25.
Bg4 {[%clk 0:00:56.9]} 25... Rh6 {[%clk 0:01:40.4]} 26. Ne5 {[%clk 0:00:53]}
26... Bd5 {[%clk 0:01:18.3]} 27. f4 {[%clk 0:00:50.7]} 27... f5 {[%clk
0:01:07.4]} 28. Bf3 {[%clk 0:00:50.6]} 28... Bxf3 {[%clk 0:01:07.6]} 29. Nxf3
{[%clk 0:00:51.2]} 29... Rff6 {[%clk 0:00:48.5]} 30. Ng5 {[%clk 0:00:46.9]}
30... Qh5 {[%clk 0:00:39.1]} 31. h4 {[%clk 0:00:39.8]} 31... Nf8 {[%clk
0:00:05.5]} 32. Qxc7 {[%clk 0:00:32.8]} 32... Qg4 {[%clk 0:00:03.7]} 33. Qc4+
{[%clk 0:00:29.2]} 33... Kh8 {[%clk 0:00:04.4]} 34. Kf2 {[%clk 0:00:19.7]} 34...
Rhg6 {[%clk 0:00:04.4]} 35. Re8 {[%clk 0:00:14.9]} 35... h6 {[%clk 0:00:04.1]}
36. Qc5 {[%clk 0:00:11.5]} 1-0

[Event "*** Titled Tuesday 3|2 Blitz"]
[Site "Chess.com"]
[Date "2016.06.07"]
[Round "2"]
[White "amaidel"]
[Black "OldweakGM"]
[Result "0-1"]
[WhiteElo "2449"]
[BlackElo "2607"]
[TimeControl "180+2"]
[EndTime "11:22:51 PDT"]
[Termination "OldweakGM won by resignation"]

1. e4 {[%clk 0:03:01.9]} 1... c5 {[%clk 0:02:57.6]} 2. Nf3 {[%clk 0:02:59.7]}
2... d6 {[%clk 0:02:58.6]} 3. d4 {[%clk 0:03:00.5]} 3... cxd4 {[%clk 0:03:00]}
4. Nxd4 {[%clk 0:03:02.3]} 4... Nf6 {[%clk 0:03:01.5]} 5. Nc3 {[%clk 0:03:03.6]}
5... a6 {[%clk 0:03:03]} 6. f4 {[%clk 0:03:04.3]} 6... Qc7 {[%clk 0:03:03.7]} 7.
a4 {[%clk 0:03:03]} 7... e6 {[%clk 0:03:02.3]} 8. Bd3 {[%clk 0:03:03.7]} 8...
Nbd7 {[%clk 0:03:00.8]} 9. O-O {[%clk 0:03:04.2]} 9... b6 {[%clk 0:03:01.5]} 10.
Kh1 {[%clk 0:03:04.9]} 10... Bb7 {[%clk 0:03:02.7]} 11. Qe1 {[%clk 0:03:05.6]}
11... Be7 {[%clk 0:03:03.7]} 12. Bd2 {[%clk 0:03:06.5]} 12... O-O {[%clk
0:03:01.9]} 13. f5 {[%clk 0:02:37.5]} 13... e5 {[%clk 0:03:01.1]} 14. Nf3 {[%clk
0:02:38.6]} 14... d5 {[%clk 0:02:51.9]} 15. exd5 {[%clk 0:02:36.5]} 15... Nxd5
{[%clk 0:02:53.5]} 16. Nxd5 {[%clk 0:02:21.5]} 16... Bxd5 {[%clk 0:02:53.9]} 17.
Qg3 {[%clk 0:02:19.6]} 17... Bf6 {[%clk 0:02:27.9]} 18. Ng5 {[%clk 0:01:45.3]}
18... Nc5 {[%clk 0:02:17.8]} 19. Rae1 {[%clk 0:01:36.7]} 19... Nxd3 {[%clk
0:01:48.5]} 20. cxd3 {[%clk 0:01:37.3]} 20... Qc2 {[%clk 0:01:41.8]} 21. Bc3
{[%clk 0:01:32.7]} 21... Bxg5 {[%clk 0:01:31.1]} 22. Qxg5 {[%clk 0:01:32.9]}
22... f6 {[%clk 0:01:32.5]} 23. Qg3 {[%clk 0:01:21.3]} 23... Qxa4 {[%clk
0:01:33.5]} 24. d4 {[%clk 0:00:32.8]} 24... e4 {[%clk 0:01:24]} 25. Rf4 {[%clk
0:00:33.9]} 25... Rf7 {[%clk 0:01:15.7]} 26. h4 {[%clk 0:00:34.3]} 26... Kh8
{[%clk 0:01:03.1]} 27. h5 {[%clk 0:00:35.1]} 27... h6 {[%clk 0:01:04.5]} 28. Rg4
{[%clk 0:00:35.3]} 28... Qc2 {[%clk 0:01:03.7]} 29. Rg6 {[%clk 0:00:34.8]} 29...
e3 {[%clk 0:01:01.7]} 30. Rxe3 {[%clk 0:00:32.9]} 30... Qxf5 {[%clk 0:01:02.7]}
31. Qg4 {[%clk 0:00:28.2]} 31... Qxg4 {[%clk 0:01:03.4]} 32. Rxg4 {[%clk
0:00:29]} 32... a5 {[%clk 0:00:59.5]} 33. Re1 {[%clk 0:00:28.7]} 33... Raa7
{[%clk 0:00:56.9]} 34. Re8+ {[%clk 0:00:27.7]} 34... Kh7 {[%clk 0:00:57.9]} 35.
Rg3 {[%clk 0:00:28.4]} 35... Rfe7 {[%clk 0:00:54.6]} 36. Rd8 {[%clk 0:00:28.9]}
36... Rad7 {[%clk 0:00:55]} 37. Rxd7 {[%clk 0:00:29.9]} 37... Rxd7 {[%clk
0:00:56.1]} 38. Re3 {[%clk 0:00:31.2]} 38... Kg8 {[%clk 0:00:54.2]} 39. Kh2
{[%clk 0:00:32.1]} 39... Kf7 {[%clk 0:00:55.2]} 40. g4 {[%clk 0:00:33.3]} 40...
Be6 {[%clk 0:00:52.6]} 41. Kg3 {[%clk 0:00:34]} 41... Rd5 {[%clk 0:00:53.2]} 42.
Re4 {[%clk 0:00:34.8]} 42... Rg5 {[%clk 0:00:52.3]} 43. Bd2 {[%clk 0:00:35.5]}
43... Rb5 {[%clk 0:00:51.4]} 44. Bc3 {[%clk 0:00:36.5]} 44... Rb3 {[%clk
0:00:51.1]} 45. Kf4 {[%clk 0:00:36.9]} 45... a4 {[%clk 0:00:52]} 46. Re3 {[%clk
0:00:36.4]} 46... b5 {[%clk 0:00:51.2]} 47. Re2 {[%clk 0:00:17.8]} 47... b4
{[%clk 0:00:51.2]} 48. Be1 {[%clk 0:00:18.9]} 48... Bd5 {[%clk 0:00:52]} 49. Rf2
{[%clk 0:00:18.8]} 49... a3 {[%clk 0:00:52.5]} 50. bxa3 {[%clk 0:00:19.3]} 50...
bxa3 {[%clk 0:00:53.9]} 0-1

[Event "*** Titled Tuesday 3|2 Blitz"]
[Site "Chess.com"]
[Date "2016.06.07"]
[Round "2"]
[White "eltenedor"]
[Black "SloLev"]
[Result "1-0"]
[WhiteElo "2060"]
[BlackElo "2082"]
[TimeControl "180+2"]
[EndTime "11:22:52 PDT"]
[Termination "eltenedor won on time"]

1. c4 {[%clk 0:03:01.2]} 1... e5 {[%clk 0:02:59.7]} 2. g3 {[%clk 0:03:00.3]}
2... Nf6 {[%clk 0:03:00.4]} 3. Bg2 {[%clk 0:03:00.8]} 3... c6 {[%clk 0:03:01.7]}
4. d4 {[%clk 0:02:58.8]} 4... exd4 {[%clk 0:02:55.9]} 5. Qxd4 {[%clk 0:02:57.9]}
5... d5 {[%clk 0:02:56.2]} 6. Nc3 {[%clk 0:02:35]} 6... Be6 {[%clk 0:02:52.3]}
7. cxd5 {[%clk 0:02:32.6]} 7... cxd5 {[%clk 0:02:52]} 8. Nh3 {[%clk 0:02:32.1]}
8... Nc6 {[%clk 0:02:52.3]} 9. Qa4 {[%clk 0:02:32.3]} 9... d4 {[%clk 0:02:21.7]}
10. Nb1 {[%clk 0:02:27.5]} 10... Qb6 {[%clk 0:02:15]} 11. Nf4 {[%clk 0:02:19.9]}
11... Rc8 {[%clk 0:02:06.2]} 12. Nxe6 {[%clk 0:02:18.7]} 12... fxe6 {[%clk
0:02:05.9]} 13. O-O {[%clk 0:02:18.7]} 13... Bc5 {[%clk 0:01:59.3]} 14. Qc4
{[%clk 0:02:17.3]} 14... Kf7 {[%clk 0:01:55.3]} 15. Bg5 {[%clk 0:01:56.7]} 15...
Ne5 {[%clk 0:01:49.1]} 16. Qa4 {[%clk 0:01:43.7]} 16... d3 {[%clk 0:00:56]} 17.
exd3 {[%clk 0:01:17.6]} 17... Nxd3 {[%clk 0:00:54.4]} 18. Bxf6 {[%clk
0:01:16.8]} 18... Kxf6 {[%clk 0:00:54.3]} 19. Nc3 {[%clk 0:00:57.2]} 19... h6
{[%clk 0:00:12.2]} 20. Ne4+ {[%clk 0:00:50]} 20... Kf7 {[%clk 0:00:13.1]} 21.
Qd7+ {[%clk 0:00:43.3]} 21... Kg6 {[%clk 0:00:10.6]} 22. Qxd3 {[%clk 0:00:42.1]}
22... Rhd8 {[%clk 0:00:12.3]} 23. Nd6+ {[%clk 0:00:30]} 23... Kf6 {[%clk
0:00:07.4]} 24. Qf3+ {[%clk 0:00:28.5]} 24... Ke7 {[%clk 0:00:08.4]} 25. Nxc8+
{[%clk 0:00:28.3]} 25... Rxc8 {[%clk 0:00:10.3]} 26. Qxb7+ {[%clk 0:00:24.5]}
26... Qxb7 {[%clk 0:00:12.2]} 27. Bxb7 {[%clk 0:00:26.4]} 27... Rb8 {[%clk
0:00:14.1]} 28. Rac1 {[%clk 0:00:23.7]} 28... Bd4 {[%clk 0:00:11.1]} 29. Bg2
{[%clk 0:00:19.1]} 29... Rxb2 {[%clk 0:00:10.4]} 30. Rc7+ {[%clk 0:00:19.6]}
30... Kf6 {[%clk 0:00:11.9]} 31. Kh1 {[%clk 0:00:18.5]} 31... Rxa2 {[%clk
0:00:12.8]} 32. f4 {[%clk 0:00:17.3]} 32... Bb6 {[%clk 0:00:13.7]} 33. Rc6
{[%clk 0:00:17]} 33... Re2 {[%clk 0:00:08.9]} 34. f5 {[%clk 0:00:17.3]} 34...
Bf2 {[%clk 0:00:03.1]} 35. Rxe6+ {[%clk 0:00:16.3]} 1-0

[Event "*** Titled Tuesday 3|2 Blitz"]
[Site "Chess.com"]
[Date "2016.06.07"]
[Round "2"]
[White "SmoothAsAHedgehog"]
[Black "Penguininja"]
[Result "0-1"]
[WhiteElo "2484"]
[BlackElo "2215"]
[TimeControl "180+2"]
[EndTime "11:22:54 PDT"]
[Termination "Penguininja won by checkmate"]

1. e4 {[%clk 0:02:57.2]} 1... e5 {[%clk 0:02:58.6]} 2. Nf3 {[%clk 0:02:58]} 2...
Nc6 {[%clk 0:03:00.2]} 3. Bc4 {[%clk 0:02:59.3]} 3... Bc5 {[%clk 0:03:00.9]} 4.
c3 {[%clk 0:03:00]} 4... Nf6 {[%clk 0:03:02.1]} 5. d3 {[%clk 0:03:01.5]} 5... a6
{[%clk 0:03:02]} 6. Bb3 {[%clk 0:03:02.7]} 6... Ba7 {[%clk 0:03:03]} 7. Nbd2
{[%clk 0:03:04]} 7... d6 {[%clk 0:03:04.3]} 8. h3 {[%clk 0:03:05.4]} 8... h6
{[%clk 0:03:04.6]} 9. Nf1 {[%clk 0:03:07]} 9... d5 {[%clk 0:03:02.8]} 10. Qe2
{[%clk 0:03:08]} 10... O-O {[%clk 0:03:03.2]} 11. Ng3 {[%clk 0:03:07.2]} 11...
Be6 {[%clk 0:02:52.5]} 12. Bd2 {[%clk 0:03:07.5]} 12... dxe4 {[%clk 0:02:42.9]}
13. dxe4 {[%clk 0:03:09.4]} 13... Qe7 {[%clk 0:02:41]} 14. O-O {[%clk
0:03:09.6]} 14... Bxb3 {[%clk 0:02:39.7]} 15. axb3 {[%clk 0:03:10.5]} 15... Qe6
{[%clk 0:02:41.6]} 16. b4 {[%clk 0:03:11.5]} 16... Rfd8 {[%clk 0:02:37.6]} 17.
Nh4 {[%clk 0:03:11]} 17... Rd7 {[%clk 0:02:28.9]} 18. Nhf5 {[%clk 0:03:11.3]}
18... Rad8 {[%clk 0:02:26.1]} 19. Bc1 {[%clk 0:03:04.4]} 19... Bb6 {[%clk
0:02:11.3]} 20. Qf3 {[%clk 0:03:03.1]} 20... Ne7 {[%clk 0:01:42.7]} 21. Bxh6
{[%clk 0:02:59.4]} 21... gxh6 {[%clk 0:01:32.5]} 22. Nxh6+ {[%clk 0:03:00.2]}
22... Kf8 {[%clk 0:01:32]} 23. Ngf5 {[%clk 0:02:45.9]} 23... Ng6 {[%clk
0:01:26.5]} 24. h4 {[%clk 0:02:44.2]} 24... Rd3 {[%clk 0:01:24]} 25. Qe2 {[%clk
0:02:44.6]} 25... Nf4 {[%clk 0:01:14.4]} 26. Qe1 {[%clk 0:02:40.2]} 26... N6h5
{[%clk 0:00:53.2]} 27. Kh2 {[%clk 0:02:37.9]} 27... Qg6 {[%clk 0:00:49.7]} 28.
g3 {[%clk 0:02:37.6]} 28... Rd2 {[%clk 0:00:31.9]} 29. gxf4 {[%clk 0:01:38.2]}
29... Nxf4 {[%clk 0:00:32]} 30. Rg1 {[%clk 0:01:39.2]} 30... Rxf2+ {[%clk
0:00:28.1]} 31. Qxf2 {[%clk 0:01:36.5]} 31... Bxf2 {[%clk 0:00:29.6]} 32. Rxg6
{[%clk 0:01:37.2]} 32... fxg6 {[%clk 0:00:31.5]} 33. Ng4 {[%clk 0:01:29.8]}
33... Rd2 {[%clk 0:00:22.7]} 34. Ng3 {[%clk 0:01:25.7]} 34... Be1+ {[%clk
0:00:21]} 35. Kg1 {[%clk 0:01:14.7]} 35... Bxg3 {[%clk 0:00:17.2]} 36. Nxe5
{[%clk 0:01:15.6]} 36... Nh3+ {[%clk 0:00:17]} 37. Kf1 {[%clk 0:01:16.6]} 37...
Rf2+ {[%clk 0:00:16.6]} 38. Ke1 {[%clk 0:01:17.4]} 38... Rh2+ {[%clk 0:00:17.9]}
39. Kf1 {[%clk 0:01:13.6]} 39... Rf2+ {[%clk 0:00:14]} 40. Ke1 {[%clk
0:01:12.9]} 40... Rg2+ {[%clk 0:00:15.6]} 41. Kf1 {[%clk 0:01:11.9]} 41... Rg1+
{[%clk 0:00:17]} 42. Ke2 {[%clk 0:01:13.4]} 42... Rxa1 {[%clk 0:00:18.7]} 43.
Nxg6+ {[%clk 0:01:15.1]} 43... Kg7 {[%clk 0:00:19.3]} 44. Ne7 {[%clk 0:01:16.4]}
44... Bd6 {[%clk 0:00:17.5]} 45. Nf5+ {[%clk 0:01:17.3]} 45... Kf6 {[%clk
0:00:19.1]} 46. Nd4 {[%clk 0:01:17.3]} 46... Rb1 {[%clk 0:00:19.8]} 47. Kd3
{[%clk 0:01:18.4]} 47... Rxb2 {[%clk 0:00:20.3]} 48. Nf5 {[%clk 0:01:19.9]}
48... Nf4+ {[%clk 0:00:21.5]} 49. Ke3 {[%clk 0:01:21]} 49... Ne6 {[%clk
0:00:22.7]} 50. Nh6 {[%clk 0:01:21.1]} 50... Rb3 {[%clk 0:00:21.7]} 51. Kd2
{[%clk 0:01:21.8]} 51... Bf4+ {[%clk 0:00:21.8]} 52. Kc2 {[%clk 0:01:21.8]}
52... Rxc3+ {[%clk 0:00:19.5]} 53. Kxc3 {[%clk 0:01:23.7]} 53... Bxh6 {[%clk
0:00:20.7]} 54. Kc4 {[%clk 0:01:25]} 54... Bf4 {[%clk 0:00:22]} 55. b5 {[%clk
0:01:26.5]} 55... axb5+ {[%clk 0:00:22.7]} 56. Kxb5 {[%clk 0:01:28.4]} 56... Bd6
{[%clk 0:00:24.3]} 57. h5 {[%clk 0:01:30.3]} 57... Kg5 {[%clk 0:00:25.2]} 58.
Kc4 {[%clk 0:01:31.9]} 58... Kxh5 {[%clk 0:00:26.4]} 59. Kd5 {[%clk 0:01:33.8]}
59... Nf4+ {[%clk 0:00:27.7]} 60. Kd4 {[%clk 0:01:35]} 60... Ng6 {[%clk
0:00:28.8]} 61. e5 {[%clk 0:01:36.9]} 61... Nxe5 {[%clk 0:00:30.7]} 62. Kd5
{[%clk 0:01:38.5]} 62... Kg6 {[%clk 0:00:32]} 63. Ke6 {[%clk 0:01:40.4]} 63...
Kg5 {[%clk 0:00:33.4]} 64. Kd5 {[%clk 0:01:41.6]} 64... Kf6 {[%clk 0:00:35.1]}
65. Kd4 {[%clk 0:01:42.9]} 65... Ke7 {[%clk 0:00:36.9]} 66. Ke4 {[%clk
0:01:44.7]} 66... Kd7 {[%clk 0:00:38.6]} 67. Kd5 {[%clk 0:01:46.6]} 67... Nf7
{[%clk 0:00:40.4]} 68. Ke4 {[%clk 0:01:47.9]} 68... c5 {[%clk 0:00:42.1]} 69.
Kf5 {[%clk 0:01:49.8]} 69... Kc6 {[%clk 0:00:43.9]} 70. Ke4 {[%clk 0:01:51.7]}
70... b5 {[%clk 0:00:45.8]} 71. Kf5 {[%clk 0:01:53.3]} 71... b4 {[%clk
0:00:47.7]} 72. Ke6 {[%clk 0:01:55.2]} 72... b3 {[%clk 0:00:49.6]} 73. Kxf7
{[%clk 0:01:57.1]} 73... b2 {[%clk 0:00:51.4]} 74. Ke8 {[%clk 0:01:58.9]} 74...
b1=Q {[%clk 0:00:53.3]} 75. Kf7 {[%clk 0:02:00.4]} 75... c4 {[%clk 0:00:55.2]}
76. Ke6 {[%clk 0:02:01.7]} 76... c3 {[%clk 0:00:57.1]} 77. Kf7 {[%clk
0:02:02.2]} 77... c2 {[%clk 0:00:58.6]} 78. Ke6 {[%clk 0:02:03.8]} 78... c1=Q
{[%clk 0:01:00.1]} 79. Kf7 {[%clk 0:02:05.7]} 79... Qf4+ {[%clk 0:01:01.2]} 80.
Ke6 {[%clk 0:02:07.6]} 80... Qbe4# {[%clk 0:01:02.4]} 0-1

[Event "*** Titled Tuesday 3|2 Blitz"]
[Site "Chess.com"]
[Date "2016.06.07"]
[Round "2"]
[White "TheLancer"]
[Black "platy3"]
[Result "0-1"]
[WhiteElo "2468"]
[BlackElo "2688"]
[TimeControl "180+2"]
[EndTime "11:22:57 PDT"]
[Termination "platy3 won by resignation"]

1. e4 {[%clk 0:03:01.9]} 1... c5 {[%clk 0:03:00.6]} 2. Nf3 {[%clk 0:02:50.6]}
2... e6 {[%clk 0:03:00.6]} 3. d4 {[%clk 0:02:51.2]} 3... cxd4 {[%clk 0:03:01.8]}
4. Nxd4 {[%clk 0:02:53.1]} 4... a6 {[%clk 0:03:03.5]} 5. Bd3 {[%clk 0:02:53.8]}
5... g6 {[%clk 0:03:02.7]} 6. c4 {[%clk 0:02:42.6]} 6... Bg7 {[%clk 0:03:03.4]}
7. Nc2 {[%clk 0:02:28.5]} 7... Ne7 {[%clk 0:03:03.6]} 8. Nc3 {[%clk 0:02:26.1]}
8... Nbc6 {[%clk 0:03:02.3]} 9. O-O {[%clk 0:02:19.1]} 9... O-O {[%clk
0:03:02.3]} 10. Be3 {[%clk 0:02:01.8]} 10... d5 {[%clk 0:02:55.2]} 11. cxd5
{[%clk 0:01:44.6]} 11... exd5 {[%clk 0:02:57.1]} 12. exd5 {[%clk 0:01:43.3]}
12... Nxd5 {[%clk 0:02:59]} 13. Bc5 {[%clk 0:01:02]} 13... Nxc3 {[%clk
0:02:52.5]} 14. bxc3 {[%clk 0:01:01.3]} 14... Re8 {[%clk 0:02:53.9]} 15. Qd2
{[%clk 0:00:26.9]} 15... Qd5 {[%clk 0:02:09.6]} 16. Be3 {[%clk 0:00:15.4]} 16...
Ne5 {[%clk 0:01:55.3]} 17. Be2 {[%clk 0:00:13.8]} 17... Qxd2 {[%clk 0:01:49]}
18. Bxd2 {[%clk 0:00:15.7]} 18... Bf5 {[%clk 0:01:46.1]} 19. Nd4 {[%clk
0:00:16.6]} 19... Bd3 {[%clk 0:01:41.8]} 20. Rfe1 {[%clk 0:00:15.1]} 20... Rac8
{[%clk 0:01:38.8]} 21. Rac1 {[%clk 0:00:12.9]} 21... Bc4 {[%clk 0:01:34]} 22. f4
{[%clk 0:00:13.2]} 22... Nd3 {[%clk 0:01:26.8]} 23. Bxd3 {[%clk 0:00:14]} 23...
Bxd3 {[%clk 0:01:28.7]} 24. Rxe8+ {[%clk 0:00:14.3]} 24... Rxe8 {[%clk
0:01:29.2]} 25. Re1 {[%clk 0:00:15.9]} 25... Rd8 {[%clk 0:01:27.5]} 26. Be3
{[%clk 0:00:15.4]} 26... Bc4 {[%clk 0:01:28.3]} 27. a3 {[%clk 0:00:15.8]} 27...
Bf8 {[%clk 0:01:29.3]} 28. Rb1 {[%clk 0:00:16.6]} 28... b5 {[%clk 0:01:28.4]}
29. Ra1 {[%clk 0:00:17.7]} 29... Bd5 {[%clk 0:01:25.5]} 30. a4 {[%clk
0:00:18.3]} 30... b4 {[%clk 0:01:21.8]} 31. cxb4 {[%clk 0:00:19.3]} 31... Bxb4
{[%clk 0:01:23.7]} 32. Rb1 {[%clk 0:00:19.4]} 32... Bc5 {[%clk 0:01:22.6]} 33.
Nf5 {[%clk 0:00:20.6]} 33... Be4 {[%clk 0:01:15.8]} 34. Rc1 {[%clk 0:00:18.7]}
34... Ba3 {[%clk 0:00:57.2]} 35. Rc3 {[%clk 0:00:10.9]} 35... Bb2 {[%clk
0:00:47.5]} 36. Ne7+ {[%clk 0:00:10.3]} 36... Kf8 {[%clk 0:00:46.4]} 37. Rc7
{[%clk 0:00:11.9]} 37... Bf6 {[%clk 0:00:36.1]} 38. Bc5 {[%clk 0:00:11.1]} 38...
Kg7 {[%clk 0:00:34.6]} 39. Be3 {[%clk 0:00:08.3]} 39... Rd3 {[%clk 0:00:33.7]}
40. Kf2 {[%clk 0:00:09.2]} 40... Ra3 {[%clk 0:00:32]} 41. f5 {[%clk 0:00:10.3]}
41... Ra2+ {[%clk 0:00:32]} 42. Ke1 {[%clk 0:00:10.8]} 42... Rxg2 {[%clk
0:00:29.4]} 43. fxg6 {[%clk 0:00:12.2]} 43... hxg6 {[%clk 0:00:30.5]} 44. Bf4
{[%clk 0:00:13.4]} 44... Bf3 {[%clk 0:00:23.9]} 45. Bg3 {[%clk 0:00:12.5]} 45...
Re2+ {[%clk 0:00:23]} 46. Kf1 {[%clk 0:00:13.4]} 46... Rxe7 {[%clk 0:00:24.1]}
0-1